[Event "*** Qualifier 1: Titled Tuesday 3|2 Blitz"]
[Site "Chess.com"]
[Date "2017.04.04"]
[Round "3"]
[White "MaestroASK"]
[Black "Alexander_Moskalenko"]
[Result "1/2-1/2"]
[WhiteElo "2488"]
[BlackElo "2629"]
[TimeControl "180+2"]
[EndTime "13:37:30 PDT"]
[Termination "Game drawn by repetition"]

1. g3 {[%clk 0:03:02]} 1... d5 {[%clk 0:03:00.2]} 2. d3 {[%clk 0:03:02.5]} 2...
e5 {[%clk 0:03:01.6]} 3. e4 {[%clk 0:03:03]} 3... dxe4 {[%clk 0:02:52.7]} 4.
dxe4 {[%clk 0:03:04.9]} 4... Qxd1+ {[%clk 0:02:49.7]} 5. Kxd1 {[%clk 0:03:06.2]}
5... Bc5 {[%clk 0:02:51.6]} 6. Bh3 {[%clk 0:03:05.1]} 6... Bxh3 {[%clk
0:02:44.1]} 7. Nxh3 {[%clk 0:03:04.8]} 7... Nc6 {[%clk 0:02:46]} 8. c3 {[%clk
0:03:04.7]} 8... a5 {[%clk 0:02:44.2]} 9. a4 {[%clk 0:03:04.6]} 9... Nf6 {[%clk
0:02:45.7]} 10. f3 {[%clk 0:03:04.4]} 10... h5 {[%clk 0:02:38.7]} 11. Ke2 {[%clk
0:03:03.8]} 11... Nd7 {[%clk 0:02:35.4]} 12. Nd2 {[%clk 0:03:03.2]} 12... f6
{[%clk 0:02:34.9]} 13. Nb3 {[%clk 0:03:00.9]} 13... Bb6 {[%clk 0:02:35]} 14. Nf2
{[%clk 0:03:00.4]} 14... Bxf2 {[%clk 0:02:31.8]} 15. Kxf2 {[%clk 0:03:00.5]}
15... h4 {[%clk 0:02:33.7]} 16. Be3 {[%clk 0:02:57.7]} 16... Ke7 {[%clk
0:02:32.1]} 17. Nd2 {[%clk 0:02:56.7]} 17... g5 {[%clk 0:02:23.3]} 18. Nc4
{[%clk 0:02:52.1]} 18... Nd8 {[%clk 0:02:24.3]} 19. g4 {[%clk 0:02:45.5]} 19...
Ne6 {[%clk 0:02:24.9]} 20. b4 {[%clk 0:02:42.3]} 20... axb4 {[%clk 0:02:25.4]}
21. cxb4 {[%clk 0:02:42.6]} 21... Nd4 {[%clk 0:02:21.4]} 22. Bxd4 {[%clk
0:02:39.3]} 22... exd4 {[%clk 0:02:23.3]} 23. Rhd1 {[%clk 0:02:38.4]} 23... c5
{[%clk 0:02:17.6]} 24. bxc5 {[%clk 0:02:24.8]} 24... Nxc5 {[%clk 0:02:19.5]} 25.
Nb6 {[%clk 0:02:10.5]} 25... Ra6 {[%clk 0:02:20.5]} 26. Nd5+ {[%clk 0:02:10.6]}
26... Kf7 {[%clk 0:02:19.9]} 27. Rac1 {[%clk 0:01:52.9]} 27... Rc8 {[%clk
0:02:19.8]} 28. Kg1 {[%clk 0:01:34.8]} 28... Ke6 {[%clk 0:02:11.9]} 29. Rxd4
{[%clk 0:01:32.4]} 29... Nb3 {[%clk 0:02:13.3]} 30. Rxc8 {[%clk 0:01:30.7]}
30... Nxd4 {[%clk 0:02:12.3]} 31. Nc7+ {[%clk 0:00:51.5]} 31... Kd7 {[%clk
0:02:13]} 32. Nxa6 {[%clk 0:00:51.8]} 32... Kxc8 {[%clk 0:02:14.6]} 33. Nb4
{[%clk 0:00:51.1]} 33... Nxf3+ {[%clk 0:02:16.1]} 34. Kg2 {[%clk 0:00:50.7]}
34... Nd2 {[%clk 0:02:17.7]} 35. Nd5 {[%clk 0:00:49.5]} 35... Nxe4 {[%clk
0:02:15.6]} 36. Kf3 {[%clk 0:00:50.2]} 36... Nd2+ {[%clk 0:02:06]} 37. Ke2
{[%clk 0:00:49.8]} 37... Ne4 {[%clk 0:02:07.4]} 38. Ke3 {[%clk 0:00:50.1]} 38...
Nc5 {[%clk 0:01:57.1]} 39. Nxf6 {[%clk 0:00:47.3]} 39... Nxa4 {[%clk 0:01:58.7]}
40. Ne4 {[%clk 0:00:47.6]} 40... b5 {[%clk 0:01:59.2]} 41. Nd6+ {[%clk
0:00:47.8]} 41... Kd7 {[%clk 0:02:00.5]} 42. Nxb5 {[%clk 0:00:48.3]} 42... Ke6
{[%clk 0:02:02.1]} 43. Kd4 {[%clk 0:00:45.8]} 43... Nb6 {[%clk 0:02:01.5]} 44.
Nc7+ {[%clk 0:00:44.8]} 44... Kf7 {[%clk 0:01:56.3]} 45. Ke5 {[%clk 0:00:44]}
45... Kg6 {[%clk 0:01:56.5]} 46. Nd5 {[%clk 0:00:36.8]} 46... Nd7+ {[%clk
0:01:57.2]} 47. Kd4 {[%clk 0:00:34.8]} 47... Kf7 {[%clk 0:01:56.3]} 48. Ke4
{[%clk 0:00:33.5]} 48... Ke6 {[%clk 0:01:55.3]} 49. Nc7+ {[%clk 0:00:33]} 49...
Kf6 {[%clk 0:01:50.6]} 50. Ne8+ {[%clk 0:00:33]} 50... Ke6 {[%clk 0:01:51.6]}
51. Nc7+ {[%clk 0:00:32.9]} 51... Kf6 {[%clk 0:01:51.8]} 52. Ne8+ {[%clk
0:00:33]} 52... Ke6 {[%clk 0:01:52.7]} 53. Nc7+ {[%clk 0:00:33.1]} 53... Kd6
{[%clk 0:01:53.3]} 54. Ne8+ {[%clk 0:00:31.5]} 54... Ke7 {[%clk 0:01:52]} 55.
Nc7 {[%clk 0:00:31.7]} 55... Kf6 {[%clk 0:01:52.3]} 56. Ne8+ {[%clk 0:00:31.8]}
56... Ke6 {[%clk 0:01:53.5]} 57. Nc7+ {[%clk 0:00:31.8]} 57... Kf6 {[%clk
0:01:54.9]} 58. Ne8+ {[%clk 0:00:31.6]} 58... Ke6 {[%clk 0:01:56.2]} 59. Nc7+
{[%clk 0:00:31.5]} 1/2-1/2

[Event "*** Qualifier 1: Titled Tuesday 3|2 Blitz"]
[Site "Chess.com"]
[Date "2017.04.04"]
[Round "3"]
[White "korason34"]
[Black "FearNoEvil12"]
[Result "1-0"]
[WhiteElo "2355"]
[BlackElo "2089"]
[TimeControl "180+2"]
[EndTime "13:37:35 PDT"]
[Termination "korason34 won on time"]

1. d4 {[%clk 0:03:02]} 1... b5 {[%clk 0:02:59.5]} 2. e4 {[%clk 0:02:57.1]} 2...
a6 {[%clk 0:03:00.8]} 3. Bd3 {[%clk 0:02:55.3]} 3... Bb7 {[%clk 0:03:02]} 4. Nd2
{[%clk 0:02:55.6]} 4... e6 {[%clk 0:03:03.4]} 5. Ngf3 {[%clk 0:02:56]} 5... Nf6
{[%clk 0:03:04.7]} 6. O-O {[%clk 0:02:56.2]} 6... d6 {[%clk 0:03:06.2]} 7. a4
{[%clk 0:02:56.8]} 7... b4 {[%clk 0:03:06.4]} 8. Qe2 {[%clk 0:02:57.1]} 8...
Nbd7 {[%clk 0:03:06.3]} 9. c3 {[%clk 0:02:56.8]} 9... bxc3 {[%clk 0:03:06]} 10.
bxc3 {[%clk 0:02:58.7]} 10... Rg8 {[%clk 0:03:05.7]} 11. Rb1 {[%clk 0:02:55.9]}
11... Rb8 {[%clk 0:03:03.7]} 12. Ba3 {[%clk 0:02:25.8]} 12... g5 {[%clk
0:03:00.7]} 13. Bxa6 {[%clk 0:02:21.8]} 13... Bxa6 {[%clk 0:02:49.1]} 14. Qxa6
{[%clk 0:02:23.7]} 14... Ra8 {[%clk 0:02:39.5]} 15. Qb5 {[%clk 0:02:08.9]} 15...
g4 {[%clk 0:02:39.7]} 16. Ne1 {[%clk 0:02:06.1]} 16... Bh6 {[%clk 0:02:35.7]}
17. e5 {[%clk 0:01:38.1]} 17... Bxd2 {[%clk 0:02:12.9]} 18. exf6 {[%clk
0:01:37.8]} 18... Qxf6 {[%clk 0:02:08]} 19. Qc6 {[%clk 0:01:37.4]} 19... Rc8
{[%clk 0:01:58.8]} 20. a5 {[%clk 0:01:30.1]} 20... Ke7 {[%clk 0:01:53.4]} 21.
Rb7 {[%clk 0:01:23.9]} 21... Bf4 {[%clk 0:01:07.2]} 22. g3 {[%clk 0:01:11.6]}
22... Rgd8 {[%clk 0:00:16.7]} 23. gxf4 {[%clk 0:01:07]} 23... Qxf4 {[%clk
0:00:16.3]} 24. Ng2 {[%clk 0:01:07.5]} 24... Qf3 {[%clk 0:00:08.5]} 25. Qxf3
{[%clk 0:01:02.4]} 25... gxf3 {[%clk 0:00:08.7]} 26. Ne3 {[%clk 0:01:02.2]}
26... Nf6 {[%clk 0:00:05.7]} 27. a6 {[%clk 0:01:00.6]} 27... Ne4 {[%clk
0:00:03.1]} 28. a7 {[%clk 0:00:49.7]} 28... Kd7 {[%clk 0:00:05]} 29. c4 {[%clk
0:00:44.9]} 29... Ra8 {[%clk 0:00:04.8]} 30. d5 {[%clk 0:00:42.6]} 30... Rg8+
{[%clk 0:00:05.5]} 31. Kh1 {[%clk 0:00:42.6]} 31... Rg6 {[%clk 0:00:04.3]} 32.
h3 {[%clk 0:00:26.4]} 32... Rag8 {[%clk 0:00:03.4]} 33. Rb8 {[%clk 0:00:20.7]}
1-0

[Event "*** Qualifier 1: Titled Tuesday 3|2 Blitz"]
[Site "Chess.com"]
[Date "2017.04.04"]
[Round "3"]
[White "evgenyermolaev"]
[Black "Fiona"]
[Result "1-0"]
[WhiteElo "2386"]
[BlackElo "2277"]
[TimeControl "180+2"]
[EndTime "13:37:36 PDT"]
[Termination "evgenyermolaev won by resignation"]

1. e4 {[%clk 0:03:02]} 1... e5 {[%clk 0:02:59]} 2. Nf3 {[%clk 0:03:02.1]} 2...
Nc6 {[%clk 0:02:57.2]} 3. Bc4 {[%clk 0:03:03.2]} 3... Bc5 {[%clk 0:02:57.3]} 4.
d3 {[%clk 0:03:03.9]} 4... Nf6 {[%clk 0:02:57]} 5. O-O {[%clk 0:03:04.8]} 5...
d6 {[%clk 0:02:54.2]} 6. Be3 {[%clk 0:03:04.4]} 6... O-O {[%clk 0:02:48]} 7.
Nbd2 {[%clk 0:03:02.7]} 7... Bb6 {[%clk 0:02:30.4]} 8. c3 {[%clk 0:03:00.9]}
8... h6 {[%clk 0:02:25.1]} 9. Re1 {[%clk 0:02:55.6]} 9... Qe7 {[%clk 0:02:16.4]}
10. Nf1 {[%clk 0:02:54.5]} 10... Be6 {[%clk 0:02:15.3]} 11. Bb3 {[%clk
0:02:43.5]} 11... Bxb3 {[%clk 0:02:11.4]} 12. axb3 {[%clk 0:02:44.4]} 12... Bxe3
{[%clk 0:02:11]} 13. Nxe3 {[%clk 0:02:43.6]} 13... g6 {[%clk 0:02:05.1]} 14. Nd5
{[%clk 0:01:59]} 14... Qd8 {[%clk 0:01:44.1]} 15. b4 {[%clk 0:01:53.6]} 15... a6
{[%clk 0:01:37.9]} 16. b5 {[%clk 0:01:44.8]} 16... Nxd5 {[%clk 0:01:33.1]} 17.
bxc6 {[%clk 0:01:44.4]} 17... Ne7 {[%clk 0:01:24.4]} 18. cxb7 {[%clk 0:01:44.6]}
18... Ra7 {[%clk 0:01:25.3]} 19. Qd2 {[%clk 0:01:16.9]} 19... Kg7 {[%clk
0:01:24.7]} 20. d4 {[%clk 0:01:11.4]} 20... f6 {[%clk 0:01:15.4]} 21. Qe2 {[%clk
0:00:38.6]} 21... a5 {[%clk 0:01:09.6]} 22. Qb5 {[%clk 0:00:30.7]} 22... Qb8
{[%clk 0:00:58.8]} 23. Rxa5 {[%clk 0:00:23.5]} 23... Rxb7 {[%clk 0:00:58.5]} 24.
Qd7 {[%clk 0:00:24.1]} 24... Rf7 {[%clk 0:00:56.3]} 25. b4 {[%clk 0:00:21.6]}
25... c6 {[%clk 0:00:33]} 26. Qe6 {[%clk 0:00:19.4]} 26... h5 {[%clk 0:00:25.3]}
27. Rea1 {[%clk 0:00:15.6]} 27... Ng8 {[%clk 0:00:22.7]} 28. Ra8 {[%clk
0:00:12.5]} 28... Qc7 {[%clk 0:00:24]} 29. Qe8 {[%clk 0:00:11.2]} 1-0

[Event "*** Qualifier 1: Titled Tuesday 3|2 Blitz"]
[Site "Chess.com"]
[Date "2017.04.04"]
[Round "3"]
[White "donotreadit"]
[Black "Keranke"]
[Result "0-1"]
[WhiteElo "2495"]
[BlackElo "2710"]
[TimeControl "180+2"]
[EndTime "13:37:37 PDT"]
[Termination "Keranke won by resignation"]

1. d4 {[%clk 0:03:02]} 1... g6 {[%clk 0:02:59.2]} 2. c4 {[%clk 0:03:01.4]} 2...
Bg7 {[%clk 0:03:00.7]} 3. Nf3 {[%clk 0:03:02.3]} 3... Nf6 {[%clk 0:03:02.3]} 4.
g3 {[%clk 0:03:02.3]} 4... O-O {[%clk 0:03:03.9]} 5. Bg2 {[%clk 0:03:02.9]} 5...
d6 {[%clk 0:03:05.5]} 6. O-O {[%clk 0:03:03]} 6... c6 {[%clk 0:03:07.2]} 7. Nc3
{[%clk 0:03:04.1]} 7... Qa5 {[%clk 0:03:08.4]} 8. e4 {[%clk 0:03:04.2]} 8... Qh5
{[%clk 0:03:08.8]} 9. Ng5 {[%clk 0:03:04.8]} 9... Qxd1 {[%clk 0:03:08.9]} 10.
Rxd1 {[%clk 0:03:04.7]} 10... e5 {[%clk 0:03:10.6]} 11. d5 {[%clk 0:03:03.3]}
11... cxd5 {[%clk 0:03:10.3]} 12. cxd5 {[%clk 0:03:03.2]} 12... Na6 {[%clk
0:03:09.8]} 13. Nb5 {[%clk 0:02:53.6]} 13... Rd8 {[%clk 0:03:06.8]} 14. f3
{[%clk 0:02:35.8]} 14... Ne8 {[%clk 0:02:11.7]} 15. Be3 {[%clk 0:02:19.1]} 15...
Bh6 {[%clk 0:02:09.7]} 16. Kf2 {[%clk 0:02:14]} 16... f6 {[%clk 0:02:07.5]} 17.
Nh3 {[%clk 0:02:04.5]} 17... Bxe3+ {[%clk 0:02:07.8]} 18. Kxe3 {[%clk
0:02:06.4]} 18... Bd7 {[%clk 0:02:07.5]} 19. Bf1 {[%clk 0:02:00.4]} 19... Nc5
{[%clk 0:01:55.4]} 20. Rac1 {[%clk 0:01:46.6]} 20... Rdc8 {[%clk 0:01:55.6]} 21.
b4 {[%clk 0:01:39.9]} 21... Na4 {[%clk 0:01:56.6]} 22. Nf2 {[%clk 0:01:26.8]}
22... Bxb5 {[%clk 0:01:52.1]} 23. Rxc8 {[%clk 0:01:10.2]} 23... Rxc8 {[%clk
0:01:54]} 24. Bxb5 {[%clk 0:01:10.5]} 24... Nc3 {[%clk 0:01:55.6]} 25. Rc1
{[%clk 0:01:04.4]} 25... Nxd5+ {[%clk 0:01:56.4]} 26. Kd2 {[%clk 0:01:05.9]}
26... Rxc1 {[%clk 0:01:57.1]} 27. Kxc1 {[%clk 0:01:07.5]} 27... Ndc7 {[%clk
0:01:56.7]} 28. Bc4+ {[%clk 0:01:07.8]} 28... Kf8 {[%clk 0:01:57.5]} 29. Nd1
{[%clk 0:01:08]} 29... Ng7 {[%clk 0:01:48.6]} 30. Ne3 {[%clk 0:01:06.4]} 30...
Nge6 {[%clk 0:01:49.5]} 31. h4 {[%clk 0:00:57.1]} 31... Nd4 {[%clk 0:01:49.1]}
32. f4 {[%clk 0:00:57.4]} 32... b5 {[%clk 0:01:38.2]} 33. Bf1 {[%clk 0:00:53.6]}
33... exf4 {[%clk 0:01:24.2]} 34. gxf4 {[%clk 0:00:54.3]} 34... Nf3 {[%clk
0:01:25.8]} 35. h5 {[%clk 0:00:53.2]} 35... gxh5 {[%clk 0:01:24.3]} 36. Be2
{[%clk 0:00:54.5]} 36... Nd4 {[%clk 0:01:18.8]} 37. Bxh5 {[%clk 0:00:55.3]}
37... Nde6 {[%clk 0:01:19.2]} 38. Ng2 {[%clk 0:00:37.8]} 38... d5 {[%clk
0:01:20.6]} 39. Bf3 {[%clk 0:00:36.2]} 39... Nd4 {[%clk 0:01:20.1]} 40. Ne1
{[%clk 0:00:25.1]} 40... Nxf3 {[%clk 0:01:20]} 41. Nxf3 {[%clk 0:00:27]} 41...
dxe4 {[%clk 0:01:21.6]} 42. Nd4 {[%clk 0:00:28.9]} 42... Ke7 {[%clk 0:01:15.4]}
43. Nc6+ {[%clk 0:00:24.1]} 43... Ke6 {[%clk 0:01:14.8]} 44. Nxa7 {[%clk
0:00:26]} 44... Kf5 {[%clk 0:01:15.4]} 45. Nxb5 {[%clk 0:00:18.4]} 45... Nxb5
{[%clk 0:01:15.8]} 46. a4 {[%clk 0:00:20.3]} 46... Nc3 {[%clk 0:01:16.5]} 47. a5
{[%clk 0:00:20.2]} 47... Nb5 {[%clk 0:01:17.4]} 48. Kb2 {[%clk 0:00:20.4]} 48...
e3 {[%clk 0:01:17.5]} 49. Kb3 {[%clk 0:00:22.3]} 0-1

[Event "*** Qualifier 1: Titled Tuesday 3|2 Blitz"]
[Site "Chess.com"]
[Date "2017.04.04"]
[Round "3"]
[White "politeplayer"]
[Black "MorpheusPro"]
[Result "1/2-1/2"]
[WhiteElo "2111"]
[BlackElo "2078"]
[TimeControl "180+2"]
[EndTime "13:37:42 PDT"]
[Termination "Game drawn by repetition"]

1. d4 {[%clk 0:02:40.5]} 1... d5 {[%clk 0:03:00]} 2. e4 {[%clk 0:02:38.2]} 2...
dxe4 {[%clk 0:02:59.3]} 3. Nc3 {[%clk 0:02:38]} 3... Bf5 {[%clk 0:02:57.2]} 4.
f3 {[%clk 0:02:33.2]} 4... exf3 {[%clk 0:02:50.6]} 5. Qxf3 {[%clk 0:02:33.7]}
5... Bc8 {[%clk 0:02:50.2]} 6. Bc4 {[%clk 0:02:25.5]} 6... Nf6 {[%clk
0:02:39.3]} 7. Bf4 {[%clk 0:02:07.1]} 7... c6 {[%clk 0:02:34.6]} 8. h3 {[%clk
0:01:34.1]} 8... e6 {[%clk 0:02:24.4]} 9. O-O-O {[%clk 0:01:29.1]} 9... Be7
{[%clk 0:02:17.1]} 10. Nge2 {[%clk 0:01:27.5]} 10... Nd5 {[%clk 0:02:12.9]} 11.
Be5 {[%clk 0:01:13.1]} 11... Bf6 {[%clk 0:01:59.6]} 12. Ne4 {[%clk 0:01:07.8]}
12... Bxe5 {[%clk 0:01:32.5]} 13. dxe5 {[%clk 0:01:08]} 13... O-O {[%clk
0:01:30.6]} 14. Nf6+ {[%clk 0:00:56.3]} 14... Kh8 {[%clk 0:01:21.9]} 15. Qh5
{[%clk 0:00:47.3]} 15... gxf6 {[%clk 0:01:11.9]} 16. Rd4 {[%clk 0:00:46.2]}
16... Rg8 {[%clk 0:00:54.8]} 17. Rf1 {[%clk 0:00:37]} 17... f5 {[%clk
0:00:34.5]} 18. Qxf7 {[%clk 0:00:28.8]} 18... Rg7 {[%clk 0:00:28.9]} 19. Qf6
{[%clk 0:00:19.3]} 19... Qxf6 {[%clk 0:00:24.1]} 20. exf6 {[%clk 0:00:20.1]}
20... Nxf6 {[%clk 0:00:23.2]} 21. Rxf5 {[%clk 0:00:17]} 21... Nd5 {[%clk
0:00:16.8]} 22. Rf8+ {[%clk 0:00:14.4]} 22... Rg8 {[%clk 0:00:17.4]} 23. Rf7
{[%clk 0:00:15.4]} 23... Nd7 {[%clk 0:00:15.2]} 24. Rh4 {[%clk 0:00:10.4]} 24...
Rg7 {[%clk 0:00:12.6]} 25. Rf1 {[%clk 0:00:10.4]} 25... N7f6 {[%clk 0:00:10.1]}
26. Bxd5 {[%clk 0:00:10.6]} 26... Nxd5 {[%clk 0:00:10.3]} 27. Rf8+ {[%clk
0:00:11.5]} 27... Rg8 {[%clk 0:00:11.1]} 28. Rf7 {[%clk 0:00:12.7]} 28... Rg7
{[%clk 0:00:10.3]} 29. Rf8+ {[%clk 0:00:13.8]} 29... Rg8 {[%clk 0:00:11.1]} 30.
Rf7 {[%clk 0:00:15.1]} 30... Rg7 {[%clk 0:00:11.6]} 31. Rf8+ {[%clk 0:00:16.3]}
31... Rg8 {[%clk 0:00:12.4]} 1/2-1/2

[Event "*** Qualifier 1: Titled Tuesday 3|2 Blitz"]
[Site "Chess.com"]
[Date "2017.04.04"]
[Round "3"]
[White "Sanan_Sjugirov"]
[Black "Spartakus1975"]
[Result "1-0"]
[WhiteElo "2698"]
[BlackElo "2511"]
[TimeControl "180+2"]
[EndTime "13:37:52 PDT"]
[Termination "Sanan_Sjugirov won on time"]

1. d4 {[%clk 0:03:02]} 1... d5 {[%clk 0:03:00.4]} 2. Nf3 {[%clk 0:03:02.3]} 2...
Nf6 {[%clk 0:03:00.7]} 3. Bg5 {[%clk 0:03:03]} 3... Ne4 {[%clk 0:02:44.3]} 4.
Bh4 {[%clk 0:03:03.9]} 4... c5 {[%clk 0:02:37.4]} 5. dxc5 {[%clk 0:03:04.7]}
5... Qa5+ {[%clk 0:02:34.9]} 6. Nbd2 {[%clk 0:03:01]} 6... Nc6 {[%clk 0:02:15]}
7. e3 {[%clk 0:02:57.1]} 7... Bf5 {[%clk 0:02:11.6]} 8. Be2 {[%clk 0:02:16.7]}
8... e6 {[%clk 0:02:02.5]} 9. O-O {[%clk 0:02:14.9]} 9... Bxc5 {[%clk
0:01:58.3]} 10. Nb3 {[%clk 0:02:12.8]} 10... Qb6 {[%clk 0:01:59]} 11. Nxc5
{[%clk 0:02:01.9]} 11... Nxc5 {[%clk 0:01:53.9]} 12. Nd4 {[%clk 0:01:51.8]}
12... Bg6 {[%clk 0:01:41.3]} 13. Nxc6 {[%clk 0:01:49.5]} 13... bxc6 {[%clk
0:01:39.5]} 14. Qd4 {[%clk 0:01:41.5]} 14... f6 {[%clk 0:01:28.2]} 15. c4 {[%clk
0:00:56.4]} 15... O-O {[%clk 0:00:44.4]} 16. cxd5 {[%clk 0:00:57.1]} 16... cxd5
{[%clk 0:00:44.7]} 17. Rfc1 {[%clk 0:00:55.5]} 17... Rac8 {[%clk 0:00:42]} 18.
Bg4 {[%clk 0:00:37.9]} 18... Bf7 {[%clk 0:00:34.3]} 19. Bg3 {[%clk 0:00:28.5]}
19... Rc6 {[%clk 0:00:17]} 20. b4 {[%clk 0:00:22.6]} 20... Ne4 {[%clk
0:00:17.8]} 21. Qxb6 {[%clk 0:00:17.8]} 21... Rxb6 {[%clk 0:00:15.3]} 22. a3
{[%clk 0:00:18.5]} 22... e5 {[%clk 0:00:13.2]} 23. Rc7 {[%clk 0:00:15.4]} 23...
a5 {[%clk 0:00:13.7]} 24. bxa5 {[%clk 0:00:14.5]} 24... Ra6 {[%clk 0:00:13.2]}
25. Bh4 {[%clk 0:00:04.1]} 25... Rxa5 {[%clk 0:00:10.9]} 26. f3 {[%clk
0:00:04.4]} 26... Nd2 {[%clk 0:00:06.3]} 27. Be1 {[%clk 0:00:04.8]} 27... Nb3
{[%clk 0:00:02.2]} 28. Rb1 {[%clk 0:00:04.5]} 1-0

[Event "*** Qualifier 1: Titled Tuesday 3|2 Blitz"]
[Site "Chess.com"]
[Date "2017.04.04"]
[Round "3"]
[White "Kacparov"]
[Black "Dlugy"]
[Result "0-1"]
[WhiteElo "2597"]
[BlackElo "2641"]
[TimeControl "180+2"]
[EndTime "13:37:55 PDT"]
[Termination "Dlugy won by checkmate"]

1. e4 {[%clk 0:03:01.9]} 1... c5 {[%clk 0:02:59]} 2. Nf3 {[%clk 0:03:02.6]} 2...
d6 {[%clk 0:02:58.1]} 3. d4 {[%clk 0:03:03.6]} 3... cxd4 {[%clk 0:02:58.3]} 4.
Qxd4 {[%clk 0:03:04.3]} 4... a6 {[%clk 0:02:57.2]} 5. c4 {[%clk 0:03:04.8]} 5...
Nc6 {[%clk 0:02:54.3]} 6. Qe3 {[%clk 0:03:05.6]} 6... g6 {[%clk 0:02:50.4]} 7.
Be2 {[%clk 0:03:05.4]} 7... Bg7 {[%clk 0:02:50.6]} 8. O-O {[%clk 0:03:05]} 8...
Nf6 {[%clk 0:02:49.3]} 9. h3 {[%clk 0:03:05.7]} 9... O-O {[%clk 0:02:46.9]} 10.
Nc3 {[%clk 0:03:06.5]} 10... Nd7 {[%clk 0:02:44.4]} 11. Rd1 {[%clk 0:03:07.5]}
11... Nc5 {[%clk 0:02:41.1]} 12. Nd5 {[%clk 0:02:42.1]} 12... f5 {[%clk
0:02:34.8]} 13. exf5 {[%clk 0:02:31.2]} 13... Bxf5 {[%clk 0:02:35.5]} 14. Qa3
{[%clk 0:01:56.1]} 14... a5 {[%clk 0:02:29.9]} 15. Be3 {[%clk 0:01:47.9]} 15...
b6 {[%clk 0:02:30.6]} 16. Rac1 {[%clk 0:01:43.9]} 16... Rb8 {[%clk 0:02:26.1]}
17. Nd4 {[%clk 0:01:28]} 17... Nxd4 {[%clk 0:02:18.3]} 18. Bxd4 {[%clk
0:01:29.9]} 18... Bxd4 {[%clk 0:02:18]} 19. Rxd4 {[%clk 0:01:31.8]} 19... e6
{[%clk 0:02:13.6]} 20. Ne3 {[%clk 0:01:02.5]} 20... Bxh3 {[%clk 0:02:13.3]} 21.
Bf3 {[%clk 0:00:51.4]} 21... Qg5 {[%clk 0:02:03.8]} 22. Kh1 {[%clk 0:00:28.8]}
22... Rxf3 {[%clk 0:01:53.9]} 23. gxf3 {[%clk 0:00:29.6]} 23... Rf8 {[%clk
0:01:55.6]} 24. Rg1 {[%clk 0:00:23.6]} 24... Qh5 {[%clk 0:01:47.5]} 25. Rg3
{[%clk 0:00:24.7]} 25... Bg4+ {[%clk 0:01:28.8]} 26. Kg1 {[%clk 0:00:23.6]}
26... Bxf3 {[%clk 0:01:29.8]} 27. Ng2 {[%clk 0:00:22.7]} 27... e5 {[%clk
0:01:30.5]} 28. Rh4 {[%clk 0:00:21.2]} 28... Qf5 {[%clk 0:01:29.7]} 29. Qe3
{[%clk 0:00:22.2]} 29... Bc6 {[%clk 0:01:22.9]} 30. Rgh3 {[%clk 0:00:19]} 30...
Rf7 {[%clk 0:01:21.1]} 31. Rg3 {[%clk 0:00:16.6]} 31... Qb1+ {[%clk 0:01:17.4]}
32. Kh2 {[%clk 0:00:17.7]} 32... Qxb2 {[%clk 0:01:17.4]} 33. f4 {[%clk
0:00:18.5]} 33... Ne4 {[%clk 0:01:12.9]} 34. Rgg4 {[%clk 0:00:13.9]} 34... Nd2
{[%clk 0:01:01.6]} 35. Kh3 {[%clk 0:00:09.6]} 35... Bd7 {[%clk 0:00:58.5]} 36.
Ne1 {[%clk 0:00:07.9]} 36... h5 {[%clk 0:00:54.6]} 37. fxe5 {[%clk 0:00:05.2]}
37... Bxg4+ {[%clk 0:00:52.7]} 38. Rxg4 {[%clk 0:00:06.3]} 38... hxg4+ {[%clk
0:00:53.8]} 39. Kxg4 {[%clk 0:00:07.8]} 39... Nxc4 {[%clk 0:00:49.8]} 40. Qg5
{[%clk 0:00:07]} 40... Nxe5+ {[%clk 0:00:50.5]} 41. Kg3 {[%clk 0:00:08.1]} 41...
Qf2+ {[%clk 0:00:51.2]} 42. Kh3 {[%clk 0:00:09.5]} 42... Qxe1 {[%clk 0:00:48.1]}
43. Qd8+ {[%clk 0:00:09.6]} 43... Kg7 {[%clk 0:00:49.3]} 44. Qg5 {[%clk
0:00:10.6]} 44... Rf3+ {[%clk 0:00:50]} 45. Kh2 {[%clk 0:00:11.7]} 45... Qf2+
{[%clk 0:00:49]} 46. Qg2 {[%clk 0:00:12.4]} 46... Ng4+ {[%clk 0:00:50]} 47. Kh1
{[%clk 0:00:13.5]} 47... Qe1+ {[%clk 0:00:51.2]} 48. Qg1 {[%clk 0:00:14.4]}
48... Rh3+ {[%clk 0:00:52.3]} 49. Kg2 {[%clk 0:00:15.3]} 49... Rg3+ {[%clk
0:00:53.7]} 50. Kh1 {[%clk 0:00:16.3]} 50... Rxg1# {[%clk 0:00:55.3]} 0-1

[Event "*** Qualifier 1: Titled Tuesday 3|2 Blitz"]
[Site "Chess.com"]
[Date "2017.04.04"]
[Round "3"]
[White "RitvarsReimanis"]
[Black "ZEN-22"]
[Result "0-1"]
[WhiteElo "2421"]
[BlackElo "2339"]
[TimeControl "180+2"]
[EndTime "13:38:01 PDT"]
[Termination "ZEN-22 won by resignation"]

1. d4 {[%clk 0:03:02]} 1... c5 {[%clk 0:02:59.5]} 2. d5 {[%clk 0:03:02.9]} 2...
e6 {[%clk 0:03:00.6]} 3. c4 {[%clk 0:03:03.6]} 3... b5 {[%clk 0:03:01.7]} 4.
cxb5 {[%clk 0:02:57.8]} 4... a6 {[%clk 0:03:02.7]} 5. bxa6 {[%clk 0:02:51.1]}
5... exd5 {[%clk 0:03:03.1]} 6. Qxd5 {[%clk 0:02:49.2]} 6... Nc6 {[%clk
0:03:03.9]} 7. Nc3 {[%clk 0:02:37.8]} 7... Nf6 {[%clk 0:03:04.3]} 8. Qd1 {[%clk
0:02:38.6]} 8... d5 {[%clk 0:03:05.5]} 9. e3 {[%clk 0:02:37.7]} 9... d4 {[%clk
0:03:06.8]} 10. Nb5 {[%clk 0:02:12.4]} 10... Bxa6 {[%clk 0:03:04.5]} 11. Bd2
{[%clk 0:02:09.9]} 11... Nd5 {[%clk 0:02:13.2]} 12. Na3 {[%clk 0:01:47.8]} 12...
Bxf1 {[%clk 0:01:55.2]} 13. Kxf1 {[%clk 0:01:49.7]} 13... dxe3 {[%clk
0:01:57.1]} 14. Bxe3 {[%clk 0:01:47.9]} 14... Nxe3+ {[%clk 0:01:56.6]} 15. fxe3
{[%clk 0:01:49.8]} 15... Qxd1+ {[%clk 0:01:57.4]} 16. Rxd1 {[%clk 0:01:48.3]}
16... Nb4 {[%clk 0:01:59.3]} 17. Nf3 {[%clk 0:01:39.2]} 17... Be7 {[%clk
0:01:56.2]} 18. Ke2 {[%clk 0:01:34.5]} 18... Nxa2 {[%clk 0:01:55.2]} 19. Nb5
{[%clk 0:01:32.4]} 19... O-O {[%clk 0:01:30.9]} 20. Rd2 {[%clk 0:01:25.5]} 20...
Nb4 {[%clk 0:01:25.1]} 21. Ne5 {[%clk 0:01:12.3]} 21... Rfb8 {[%clk 0:01:22.8]}
22. Na3 {[%clk 0:00:50.1]} 22... f6 {[%clk 0:01:14.2]} 23. Nec4 {[%clk
0:00:47.9]} 23... Kf7 {[%clk 0:01:08.3]} 24. Rhd1 {[%clk 0:00:48.7]} 24... Rd8
{[%clk 0:01:07.8]} 25. Rd7 {[%clk 0:00:48.4]} 25... Ke6 {[%clk 0:01:05.1]} 26.
Rb7 {[%clk 0:00:37.5]} 26... Rxd1 {[%clk 0:01:04.3]} 27. Kxd1 {[%clk 0:00:39.4]}
27... Rd8+ {[%clk 0:00:58.5]} 28. Ke2 {[%clk 0:00:40.4]} 28... h5 {[%clk
0:00:59.8]} 29. Rb6+ {[%clk 0:00:38.3]} 29... Kf7 {[%clk 0:01:00.2]} 30. Rb7
{[%clk 0:00:39.7]} 30... g5 {[%clk 0:01:01.2]} 31. Nb5 {[%clk 0:00:39.7]} 31...
Ke6 {[%clk 0:00:57.9]} 32. Rb6+ {[%clk 0:00:36.6]} 32... Kf5 {[%clk 0:00:58.1]}
33. Nbd6+ {[%clk 0:00:31.1]} 33... Kg6 {[%clk 0:00:56.6]} 34. Ne4 {[%clk
0:00:27.5]} 34... Kf5 {[%clk 0:00:49.8]} 35. Ned6+ {[%clk 0:00:28.4]} 35... Bxd6
{[%clk 0:00:50.7]} 36. Nxd6+ {[%clk 0:00:30.3]} 36... Kg6 {[%clk 0:00:52]} 37.
Ne4 {[%clk 0:00:30.5]} 37... Nd5 {[%clk 0:00:50]} 38. Rc6 {[%clk 0:00:31.5]}
38... Re8 {[%clk 0:00:47.9]} 39. Rxc5 {[%clk 0:00:20.3]} 39... Nf4+ {[%clk
0:00:38.1]} 40. Kf3 {[%clk 0:00:17]} 40... Nd3 {[%clk 0:00:37.8]} 41. Rc4 {[%clk
0:00:09.6]} 41... Ne5+ {[%clk 0:00:37.6]} 0-1